bitfinex/quotes_SOLUSD_20250805
["timestamp","ask_amount","ask_price","bid_price","bid_amount"]
[1754428755833,0.03,163.06,163.05,38.92270027]
[1754428756919,0.03,163.06,163.05,52.96248833]
[1754428757115,0.03,163.06,163.05,44.33578827]
[1754428757318,8.62670006,163.06,163.03,6.13384039]
[1754428757523,7.90670006,163.04,163.02,0.06]
[1754428757732,7.90670006,163.03,163.02,0.06]
[1754428758034,8.59670006,163.03,163.02,43.18]
[1754428759224,7.90670006,163.04,163.02,49.31421666]
[1754428759522,0.03,163.06,163.03,0.14216157]
[1754428759722,0.03,163.06,163.05,8.04886163]
[1754428760335,0.03,163.06,163.05,24.15940034]
[1754428761025,1e-08,163.06,163.05,46.85940034]
[1754428761206,1e-08,163.06,163.05,52.99248834]
[1754428761621,1e-08,163.06,163.05,14.46627277]
[1754428761829,1e-08,163.06,163.05,6.55957271]
[1754428762036,1e-08,163.06,163.05,49.67957271]
[1754428764315,1e-08,163.06,163.05,73.41248834]
[1754428764516,1e-08,163.06,163.05,74.02579714]
[1754428764822,0.03,163.1,163.09,15.53270028]
[1754428765034,0.03,163.1,163.09,66.55940034]
[1754428765913,0.03,163.1,163.09,89.25940034]
[1754428766339,0.03,163.1,163.09,95.39098412]
[1754428766545,0.03,163.1,163.09,96.11098412]
[1754428768636,0.03,163.1,163.09,72.37806849]
[1754428768820,0.72,163.1,163.09,72.09374535]
[1754428769020,0.03,163.1,163.09,72.09374535]
[1754428769231,0.03,163.1,163.09,80.00044541]
[1754428769519,0.03,163.1,163.09,72.09374535]
[1754428771933,0.72,163.1,163.09,65.96216157]
[1754428772247,8.62670006,163.1,163.09,65.82]
[1754428773245,0.03,163.1,163.09,80.72044541]
[1754428774351,0.03,163.1,163.09,81.00476855]
[1754428777566,0.03,163.1,163.09,96.11098412]
[1754428785475,0.03,163.1,163.09,95.37098412]
[1754428785649,0.03,163.1,163.09,96.03098412]
[1754428788176,0.03,163.12,163.11,22.75432314]
[1754428788363,0.03,163.12,163.11,73.7610232]
[1754428789281,0.03,163.12,163.11,79.89185515]
[1754428790275,0.03,163.12,163.11,37.45185515]
[1754428790461,0.03,163.12,163.11,95.80023229]
[1754428791674,0.03,163.12,163.11,95.14023229]
[1754428792494,0.03,163.12,163.11,71.84299352]
[1754428792495,0.74,163.12,163.11,71.84299352]
[1754428792647,0.03,163.12,163.11,71.84299352]
[1754428792853,0.03,163.12,163.11,95.80023229]
[1754428793654,1e-08,163.12,163.11,95.80023229]
[1754428794064,0.2,163.15,163.14,0.14216157]
[1754428794290,0.2,163.15,163.14,73.38886162]
[1754428795276,0.2,163.15,163.14,79.51856616]
[1754428801203,0.2,163.16,163.15,22.38216156]
[1754428801508,0.2,163.16,163.15,30.94886162]
[1754428802098,0.2,163.16,163.15,65.7464847]
[1754428802294,0.2,163.16,163.15,74.31318476]
[1754428802808,0.2,163.16,163.15,89.41940033]
[1754428803021,0.2,163.16,163.15,95.54872916]
[1754428804608,0.2,163.16,163.15,90.0953401]
[1754428804977,0.2,163.16,163.15,98.00204016]
[1754428805490,0.2,163.16,163.15,97.34204016]
[1754428805698,0.2,163.16,163.15,98.05204016]
[1754428810487,0.2,163.2,163.18,22.03999999]
[1754428810687,0.2,163.2,163.19,43.22216157]
[1754428811132,0.86,163.2,163.19,43.22216157]
[1754428811320,0.86,163.2,163.19,51.41318477]
[1754428811321,0.2,163.2,163.19,51.41318477]
[1754428811636,0.2,163.2,163.19,60.02988477]
[1754428812506,0.2,163.2,163.19,66.15771122]
[1754428813738,0.2,163.2,163.19,103.20392678]
[1754428814841,0.2,163.2,163.19,102.49392678]
[1754428816425,0.2,163.2,163.19,103.20392678]
[1754428817745,0.2,163.21,163.2,28.15177411]
[1754428818037,0.2,163.21,163.2,36.76847417]
[1754428822218,0.2,163.21,163.2,36.05847417]
[1754428823547,0.86,163.21,163.2,70.86961254]
[1754428825056,0.86,163.21,163.2,64.74216156]
[1754428825221,0.86,163.21,163.2,70.86961254]
[1754428825943,8.76670006,163.21,163.2,64.59999999]
[1754428828017,0.2,163.21,163.2,64.59999999]
[1754428829424,0.2,163.21,163.2,71.57961254]
[1754428829921,0.2,163.21,163.2,71.15393568]
[1754428830241,0.2,163.21,163.2,70.86961254]
[1754428831122,0.86,163.21,163.2,70.86961254]
[1754428831325,8.76670006,163.21,163.2,64.59999999]
[1754428832058,8.76670006,163.21,163.2,70.72745097]
[1754428835274,8.76670006,163.21,163.19,49.24773263]
[1754428835432,8.61670006,163.2,163.19,49.24773263]
[1754428836642,0.2,163.21,163.19,49.24773263]
[1754428836837,0.2,163.21,163.19,49.96773263]
[1754428837754,0.2,163.21,163.19,49.24773263]
[1754428837932,0.2,163.21,163.2,0.72]
[1754428838429,0.2,163.21,163.2,0.86216157]
[1754428838630,0.2,163.21,163.2,36.4363126]
[1754428843969,0.03,163.22,163.2,36.4363126]
[1754428843970,0.03,163.22,163.21,0.14216157]
[1754428844267,0.03,163.23,163.21,73.65318476]
[1754428844439,0.03,163.23,163.22,8.9110232]
[1754428844641,0.03,163.23,163.22,30.45102319]
[1754428844845,0.03,163.23,163.22,32.90358219]
[1754428845761,0.03,163.23,163.22,39.03028234]
[1754428847158,0.03,163.23,163.22,54.27865948]
[1754428847344,0.03,163.23,163.22,39.17244391]
[1754428847559,0.03,163.23,163.22,30.54574385]
[1754428847765,0.03,163.23,163.22,73.58574385]
[1754428849069,0.03,163.23,163.2,178.02484302]
[1754428849070,8.64670006,163.23,163.2,21.53999999]
[1754428849277,7.90670006,163.21,163.2,64.57999999]
[1754428849453,8.61670006,163.21,163.2,64.57999999]
[1754428849968,8.61670006,163.21,163.2,43.04]
[1754428850172,7.90670006,163.21,163.2,43.04]
[1754428851252,0.03,163.23,163.21,0.14216157]
[1754428851574,0.03,163.23,163.22,43.04]
[1754428851775,4.14263475,163.23,163.22,43.04]
[1754428851973,0.03,163.23,163.22,43.04]
[1754428852572,7.93670006,163.23,163.22,43.04]
[1754428853086,7.93670006,163.23,163.21,43.04]
[1754428853087,12.75972377,163.23,163.21,43.04]
[1754428853275,8.61670006,163.22,163.21,43.04]
[1754428853576,12.72977728,163.22,163.2,43.04]
[1754428853746,7.90670006,163.21,163.2,43.04]
[1754428854377,7.90670006,163.22,163.2,43.76]
[1754428854975,0.03,163.23,163.21,0.86216157]
[1754428855147,7.93670006,163.23,163.22,43.04]
[1754428855348,12.04926624,163.23,163.22,43.04]
[1754428855572,12.04926624,163.23,163.22,49.16670015]
[1754428857061,12.75926624,163.23,163.19,0.06]
[1754428857261,7.90670006,163.21,163.2,43.04]
[1754428857468,0.03,163.23,163.21,0.28432314]
[1754428857665,0.03,163.23,163.22,67.19940034]
[1754428859063,0.03,163.23,163.22,73.32610049]
[1754428859880,0.03,163.23,163.22,75.77850849]
[1754428862164,0.03,163.23,163.22,97.97850849]
[1754428862964,0.03,163.23,163.22,87.61940043]
[1754428863182,0.03,163.23,163.22,95.52610049]
[1754428863483,0.03,163.23,163.22,95.58610049]
[1754428863790,0.03,163.23,163.22,79.75988492]
[1754428868084,0.03,163.23,163.22,71.85318486]
[1754428871783,0.03,163.23,163.22,72.54318486]
[1754428871986,0.03,163.23,163.22,80.44988492]
[1754428874690,0.03,163.23,163.22,71.42670015]
[1754428874896,8.65670006,163.23,163.22,65.28]
[1754428875404,8.65670006,163.23,163.22,43.08]
[1754428876672,8.65670006,163.23,163.22,0.06]
[1754428876899,18.8917015,163.23,163.22,0.06]
[1754428878707,7.90670006,163.21,163.2,0.06]
[1754428878906,12.01537669,163.21,163.2,0.06]
[1754428879213,12.73537669,163.21,163.2,0.06]
[1754428879573,38.73537669,163.21,163.2,0.06]
[1754428880401,44.86245223,163.21,163.2,0.06]
[1754428885599,33.90670006,163.21,163.2,0.06]
[1754428885905,7.90670006,163.21,163.2,0.06]
[1754428888018,7.90670006,163.21,163.2,0.75]
[1754428888222,7.90670006,163.22,163.2,0.75]
[1754428888547,7.90670006,163.22,163.21,0.69]
[1754428888815,7.93670006,163.23,163.21,0.69]
[1754428889993,7.93670006,163.23,163.22,0.69]
[1754428890189,0.03,163.23,163.22,0.69]
[1754428890806,0.03,163.23,163.22,6.81670015]
[1754428891025,0.03,163.23,163.22,15.14988492]
[1754428893631,0.03,163.23,163.22,58.16988492]
[1754428894225,0.03,163.23,163.22,73.27610049]
[1754428894530,0.03,163.23,163.22,95.47610049]
[1754428895598,0.03,163.23,163.22,80.36988492]
[1754428895797,7.93670006,163.23,163.2,6.84716956]
[1754428896097,7.93670006,163.23,163.21,43.02]
[1754428896708,7.93670006,163.23,163.2,6.84716956]
[1754428896709,8.61670006,163.22,163.2,0.06]
[1754428896909,15.81340012,163.21,163.2,0.06]
[1754428897112,12.71648024,163.21,163.2,0.06]
[1754428897703,18.84355578,163.21,163.2,0.06]
[1754428898300,14.7437756,163.21,163.2,0.06]
[1754428899337,22.65047566,163.21,163.2,0.06]
[1754428900034,14.7437756,163.21,163.2,0.06]
[1754428900400,14.0337756,163.21,163.2,0.06]
[1754428900601,7.93670006,163.23,163.2,0.72]
[1754428901115,0.03,163.23,163.2,0.72]
[1754428901327,0.03,163.23,163.21,0.14216157]
[1754428901536,0.03,163.23,163.22,0.66]
[1754428902350,0.03,163.23,163.22,6.78670015]
[1754428903335,0.03,163.23,163.22,0.66]
[1754428903523,0.03,163.23,163.22,6.78670015]
[1754428905253,0.03,163.23,163.21,6.26913519]
[1754428905552,0.03,163.23,163.22,0.66]
[1754428906102,0.03,163.23,163.22,0.72]
[1754428906215,0.03,163.23,163.22,43.74]
[1754428907127,0.03,163.23,163.22,49.86670015]
[1754428908549,0.03,163.23,163.22,80.11556178]
[1754428910666,0.03,163.23,163.22,65.28]
[1754428912327,0.03,163.23,163.22,43.08]
[1754428913716,8.64670006,163.23,163.22,43.08]
[1754428914130,8.64670006,163.23,163.22,0.06]
[1754428915735,14.77302487,163.23,163.22,0.06]
[1754428917143,18.87263755,163.23,163.22,0.06]
[1754428922373,26.0,163.21,163.2,0.06]
[1754428922669,45.9130128,163.21,163.19,0.06]
[1754428922845,19.9130128,163.2,163.19,0.06]
[1754428923046,20.6230128,163.2,163.19,0.06]
[1754428924183,26.75046378,163.2,163.19,0.06]
[1754428925864,26.72046378,163.2,163.18,0.06]
[1754428926158,8.58670006,163.19,163.18,0.06]
[1754428926488,12.68606985,163.19,163.18,0.06]
[1754428928096,18.8138963,163.19,163.18,0.06]
[1754428929160,14.71452651,163.19,163.18,0.06]
[1754428930166,77.15194045,163.19,163.14,22.2]
[1754428930367,7.90670006,163.15,163.13,22.2]
[1754428930593,7.90670006,163.14,163.13,22.2]
[1754428931184,7.90670006,163.14,163.13,22.86]
[1754428932863,14.0364046,163.14,163.13,22.86]
[1754428934903,7.90670006,163.14,163.13,22.86]
[1754428935976,14.0364046,163.14,163.1,22.86]
[1754428936212,7.90670006,163.11,163.1,22.2]
[1754428936721,7.90670006,163.11,163.1,22.86]
[1754428937492,6.12970454,163.14,163.1,22.86]
[1754428937715,7.90670006,163.12,163.11,0.66]
[1754428939517,7.90670006,163.12,163.1,0.66]
[1754428939717,7.90670006,163.11,163.1,0.66]
[1754428942110,7.90670006,163.11,163.09,22.26]
[1754428942419,7.90670006,163.11,163.09,22.92]
[1754428943322,7.90670006,163.11,163.1,0.66]
[1754428944912,7.90670006,163.11,163.1,22.86]
[1754428947532,32.13021985,163.13,163.1,22.86]
[1754428947533,7.90670006,163.13,163.1,22.86]
[1754428947836,7.90670006,163.13,163.11,0.66]
[1754428948126,7.90670006,163.13,163.12,0.66]
[1754428949421,26.0,163.15,163.12,0.66]
[1754428949617,26.0,163.15,163.12,28.99038541]
[1754428949810,7.93670006,163.17,163.13,0.66]
[1754428950512,7.93670006,163.17,163.13,49.80983124]
[1754428950823,7.90670006,163.14,163.13,43.02]
[1754428951733,0.03,163.17,163.13,51.58670006]
[1754428952028,0.03,163.17,163.16,8.04886163]
[1754428952230,0.03,163.17,163.16,51.06886163]
[1754428952533,0.03,163.17,163.16,49.95111474]
[1754428952942,0.03,163.17,163.16,57.8578148]
[1754428955135,0.03,163.17,163.16,49.95111474]
[1754428956538,0.03,163.17,163.16,43.02]
[1754428959220,0.03,163.17,163.16,49.81895317]
[1754428959441,0.03,163.17,163.16,49.96111474]
[1754428959646,0.03,163.17,163.16,57.8678148]
[1754428961759,0.03,163.17,163.16,49.96111474]
[1754428962652,0.03,163.17,163.16,72.16111474]
[1754428963549,0.03,163.17,163.16,65.22]
[1754428963742,0.03,163.17,163.16,65.2]
[1754428965636,0.03,163.17,163.16,65.87]
[1754428970561,0.03,163.17,163.16,65.93]
[1754428973481,0.03,163.17,163.16,22.93]
[1754428973775,0.03,163.17,163.16,65.93]
[1754428980381,0.03,163.17,163.16,65.26]
[1754428980990,8.60670006,163.17,163.16,0.06]
[1754428981679,14.73527761,163.17,163.16,0.06]
[1754428981888,18.84955229,163.17,163.16,0.06]
[1754428984289,18.17955229,163.17,163.16,0.06]
[1754428984784,18.86955229,163.17,163.16,0.06]
[1754428985486,34.19099618,163.17,163.14,0.06]
[1754428985702,7.90670006,163.15,163.14,0.06]
[1754428985860,12.02097474,163.15,163.14,0.06]
[1754428986064,12.71097474,163.15,163.14,0.06]
[1754428987092,34.16362566,163.15,163.1,0.06]
[1754428987385,7.90670006,163.11,163.1,0.06]
[1754428988069,8.59670006,163.11,163.1,0.06]
[1754428988959,14.72753201,163.11,163.1,0.06]
[1754428989992,18.83872729,163.11,163.1,0.06]
[1754428990868,18.14872729,163.11,163.1,0.06]
[1754428991054,14.03753201,163.11,163.1,0.06]
[1754428993007,14.72753201,163.11,163.1,0.06]
[1754428994295,14.03753201,163.11,163.1,0.06]
[1754428994500,14.03753201,163.11,163.1,0.77]
[1754428994805,7.90670006,163.11,163.1,0.77]
[1754428994980,14.03753201,163.11,163.1,0.77]
[1754428995180,14.03753201,163.11,163.1,0.06]
[1754428997085,14.72753201,163.11,163.1,0.06]
[1754428997285,7.90670006,163.11,163.1,0.06]
[1754428997506,14.03753201,163.11,163.1,0.06]
[1754428997685,7.90670006,163.11,163.1,0.77]
[1754429001217,7.90670006,163.11,163.1,0.06]
[1754429002786,14.72753201,163.11,163.1,0.06]
[1754429003111,14.03753201,163.11,163.1,0.06]
[1754429004522,33.90670006,163.11,163.1,0.77]
[1754429004819,14.03681601,163.13,163.1,0.77]
[1754429005120,7.90670006,163.12,163.11,0.71]
[1754429005413,7.90670006,163.12,163.1,0.06]
[1754429005982,7.90670006,163.12,163.11,0.71]
[1754429006919,7.90670006,163.12,163.11,22.91]
[1754429008116,32.12941419,163.15,163.11,22.2]
[1754429008320,7.90670006,163.16,163.12,0.71]
[1754429008524,12.01554687,163.16,163.12,0.71]
[1754429008823,7.90670006,163.15,163.13,0.71]
[1754429009620,12.01633261,163.16,163.13,0.71]
[1754429010011,7.90670006,163.14,163.1,22.97]
[1754429010214,7.90670006,163.12,163.1,22.97]
[1754429010820,7.90670006,163.13,163.1,22.97]
[1754429011398,7.90670006,163.13,163.11,0.71]
[1754429012421,7.90670006,163.13,163.1,22.26]
[1754429012725,7.90670006,163.12,163.1,22.97]
[1754429012922,7.90670006,163.12,163.1,0.77]
[1754429013916,7.90670006,163.12,163.1,0.06]
[1754429014508,7.90670006,163.12,163.1,0.74]
[1754429014805,6.15984714,163.14,163.11,0.68]
[1754429015124,7.90670006,163.13,163.11,0.68]
[1754429015709,7.90670006,163.12,163.1,0.06]
[1754429016828,33.90670006,163.13,163.11,0.68]
[1754429017017,7.93670006,163.14,163.11,0.68]
[1754429017937,7.93670006,163.14,163.1,0.06]
[1754429018237,18.18391689,163.14,163.12,0.68]
[1754429018403,14.0664306,163.14,163.12,0.68]
[1754429019609,7.90670006,163.13,163.1,22.94]
[1754429019816,7.90670006,163.12,163.1,22.94]
[1754429021048,8.59670006,163.11,163.1,22.26]
[1754429021253,8.59670006,163.11,163.1,0.06]
[1754429021651,7.90670006,163.11,163.1,0.06]
[1754429023937,14.03753201,163.11,163.1,0.06]
[1754429024244,18.1661862,163.11,163.1,0.06]
[1754429025741,12.03535425,163.11,163.1,0.06]
[1754429025949,12.26535425,163.11,163.1,0.06]
[1754429026156,12.03535425,163.11,163.1,0.06]
[1754429029386,4.12865419,163.11,163.1,0.74]
[1754429029542,4.12865419,163.13,163.1,8.64670006]
[1754429029741,0.03,163.14,163.11,43.66]
[1754429029951,4.13222489,163.13,163.11,43.66]
[1754429030147,0.03,163.14,163.11,43.66]
[1754429030464,4.13220375,163.13,163.12,0.68]
[1754429031258,4.13220375,163.13,163.12,8.6167]
[1754429032965,4.13220375,163.13,163.12,0.68]
[1754429034344,4.13220375,163.13,163.12,6.8104561]
[1754429034964,4.13220375,163.13,163.12,14.7471561]
[1754429037672,0.03,163.14,163.12,14.7471561]
[1754429037867,0.03,163.14,163.13,43.64]
[1754429038173,4.1617348,163.14,163.13,43.64]
[1754429038470,4.1617348,163.14,163.13,42.96]
[1754429038672,12.75814525,163.14,163.12,42.96]
[1754429038842,0.72,163.14,163.13,2.454364]
[1754429039044,0.72,163.14,163.12,42.96]
[1754429039045,12.75856903,163.14,163.12,42.96]
[1754429039266,12.03856903,163.13,163.12,42.96]
[1754429044481,4.13186897,163.13,163.12,42.96]
[1754429044686,12.03856903,163.13,163.12,42.96]
[1754429045580,12.71856903,163.13,163.12,42.96]
[1754429045758,12.71856903,163.13,163.1,43.02]
[1754429046083,7.90670006,163.11,163.1,43.72]
[1754429046279,7.90670006,163.12,163.1,43.72]
[1754429046789,0.03,163.14,163.11,0.7]
[1754429046953,12.03944597,163.13,163.12,0.7]
[1754429047359,12.03944597,163.13,163.1,43.72]
[1754429047680,12.03944597,163.12,163.11,0.7]
[1754429048486,12.03944597,163.12,163.11,22.9]
[1754429050477,12.03944597,163.12,163.11,22.2]
[1754429052378,4.13274591,163.12,163.11,22.9]
[1754429052594,12.03944597,163.12,163.11,22.9]
[1754429055679,4.13274591,163.12,163.11,22.9]
[1754429058197,4.13274591,163.12,163.11,29.03083195]
[1754429058391,0.03,163.14,163.12,0.14216157]
[1754429058600,0.03,163.14,163.13,51.56670006]
[1754429060400,0.03,163.14,163.13,57.69678036]
[1754429060973,0.03,163.14,163.13,80.03894193]
[1754429064005,0.03,163.14,163.13,65.86]
[1754429064297,0.03,163.14,163.13,71.2900803]
[1754429065002,0.03,163.14,163.13,71.9900803]
[1754429066894,0.03,163.14,163.13,79.89678036]
[1754429073910,0.03,163.14,163.13,71.9900803]
[1754429075399,0.03,163.14,163.13,79.89678036]
[1754429076724,0.03,163.14,163.13,77.04246449]
[1754429079392,0.03,163.14,163.13,77.24462606]
[1754429080722,0.03,163.14,163.13,80.08293715]
[1754429082522,0.03,163.14,163.13,72.19224187]
[1754429082819,0.03,163.14,163.13,80.08293715]
[1754429082995,0.03,163.14,163.13,95.47347586]
[1754429083513,0.03,163.14,163.13,97.92723786]
[1754429083899,0.03,163.16,163.15,0.14216157]
[1754429084094,0.03,163.16,163.15,73.84285685]
[1754429085115,0.03,163.16,163.15,79.97218568]
[1754429091532,0.75,163.16,163.15,65.09]
[1754429091706,8.64069528,163.16,163.15,65.09]
[1754429094130,0.03,163.16,163.15,79.97218568]
[1754429094334,0.03,163.16,163.15,65.09]
[1754429098333,0.03,163.16,163.15,65.81]
[1754429098835,0.03,163.16,163.15,57.66002411]
[1754429099037,0.03,163.16,163.15,57.80218568]
[1754429099242,0.03,163.16,163.15,73.19272439]
[1754429100236,0.03,163.16,163.15,95.39272439]
[1754429100437,0.03,163.16,163.15,80.00218568]
[1754429100646,0.03,163.16,163.15,72.1114904]
[1754429103047,0.03,163.16,163.15,80.00218568]
[1754429104646,0.03,163.16,163.15,82.45594768]
[1754429105951,0.03,163.16,163.15,97.84648639]
[1754429108659,0.03,163.17,163.16,0.14216157]
[1754429108946,0.03,163.17,163.16,8.69285685]
[1754429109921,1e-08,163.17,163.16,24.08339556]
[1754429110138,0.69,163.24,163.2,0.14216157]
[1754429110339,0.69,163.24,163.21,51.45069528]
[1754429111052,0.69,163.24,163.21,56.91748475]
[1754429111230,4.81375246,163.24,163.21,56.91748475]
[1754429111448,0.69,163.24,163.21,56.91748475]
[1754429113166,0.69,163.24,163.21,57.57748475]
[1754429113555,0.69,163.24,163.21,79.74748474]
[1754429114149,0.69,163.24,163.21,79.08748474]
[1754429114348,0.72,163.23,163.21,79.08748474]
[1754429114551,0.03,163.23,163.21,79.08748474]
[1754429117285,0.69,163.22,163.21,22.16999999]
[1754429117461,8.58069528,163.22,163.21,22.16999999]
[1754429119271,18.82829694,163.22,163.21,22.16999999]
[1754429119581,18.82829694,163.22,163.19,22.16999999]
[1754429119887,7.89069528,163.2,163.19,22.16999999]
[1754429120065,7.89069528,163.21,163.19,22.82999999]
[1754429120273,0.03,163.23,163.2,43.54]
[1754429120468,4.15120159,163.23,163.2,43.54]
[1754429120776,0.03,163.23,163.21,0.66]
[1754429120959,0.03,163.23,163.22,42.88]
[1754429121362,0.03,163.23,163.22,43.54]
[1754429121561,0.03,163.23,163.22,49.80886172]
[1754429122285,0.03,163.23,163.22,57.699557]
[1754429122660,0.03,163.23,163.22,73.09009571]
[1754429123161,14.95396014,163.25,163.22,73.09009571]
[1754429123162,0.2,163.25,163.23,15.53270028]
[1754429123370,0.2,163.25,163.24,57.69880637]
[1754429127791,0.2,163.25,163.24,57.67880637]
[1754429128090,0.2,163.25,163.24,73.06934508]
[1754429128394,26.0,163.33,163.27,0.14216157]
[1754429128571,26.0,163.33,163.29,7.89069528]
[1754429128763,26.0,163.33,163.3,42.86]
[1754429130083,34.58069528,163.33,163.3,42.86]
[1754429133290,26.0,163.33,163.3,43.52]
[1754429134280,26.0,163.33,163.3,65.25999999]
[1754429134593,33.89069528,163.33,163.3,65.25999999]
[1754429134792,33.89069528,163.33,163.3,64.59999999]
[1754429134983,34.59069528,163.33,163.3,64.59999999]
[1754429135587,34.59069528,163.33,163.3,71.4336987]
[1754429135588,0.7,163.33,163.3,71.4336987]
[1754429135892,22.65319528,163.35,163.3,79.32439398]
[1754429136599,22.65319528,163.35,163.3,79.46655555]
[1754429136973,0.7,163.34,163.3,79.46655555]
[1754429137472,21.95319528,163.35,163.3,79.46655555]
[1754429137797,22.65319528,163.35,163.3,79.46655555]
[1754429139471,0.7,163.34,163.3,71.57586027]
[1754429139870,8.59069528,163.34,163.3,71.57586027]
[1754429140271,8.59069528,163.34,163.3,70.86586027]
[1754429140692,0.7,163.33,163.3,70.86586027]
[1754429140901,0.9,163.31,163.3,64.59999999]
[1754429142197,0.2,163.31,163.3,64.59999999]
[1754429143378,8.79069528,163.31,163.3,64.59999999]
[1754429143889,8.79069528,163.31,163.3,64.57999999]
[1754429144480,0.2,163.31,163.3,64.57999999]
[1754429146316,8.79069528,163.31,163.3,64.57999999]
[1754429146909,14.91401902,163.31,163.3,64.57999999]
[1754429147307,14.91401902,163.31,163.3,21.73999999]
[1754429147527,0.2,163.31,163.3,42.84]
[1754429147701,0.2,163.31,163.25,26.20216157]
[1754429147702,8.09069528,163.31,163.25,0.06]
[1754429147907,8.09069528,163.31,163.26,0.71]
[1754429147908,8.59069528,163.3,163.26,0.71]
[1754429148143,0.2,163.31,163.27,42.86]
[1754429148144,8.09069528,163.31,163.27,42.86]
[1754429148352,8.79069528,163.31,163.27,42.86]
[1754429148654,8.79069528,163.31,163.27,43.57]
[1754429148812,7.89069528,163.3,163.27,43.57]
[1754429150932,7.89069528,163.3,163.27,49.69476473]
[1754429151511,7.89069528,163.3,163.27,43.57]
[1754429151835,7.89069528,163.28,163.27,42.86]
[1754429155421,7.89069528,163.29,163.27,42.86]
[1754429155619,7.89069528,163.29,163.27,43.57]
[1754429155815,7.89069528,163.29,163.27,42.86]
[1754429156331,8.59069528,163.28,163.25,6.32757849]
[1754429156539,7.89069528,163.28,163.26,43.55]
[1754429156740,7.89069528,163.28,163.26,42.84]
[1754429157036,8.59069528,163.27,163.25,0.06]
[1754429157217,33.89069528,163.26,163.25,0.06]
[1754429157549,38.70232644,163.26,163.25,0.06]
[1754429158919,38.70232644,163.26,163.17,0.06]
[1754429158920,60.14052317,163.26,163.17,6.1884799]
[1754429159121,7.89069528,163.19,163.18,42.94]
[1754429159522,7.89069528,163.19,163.18,43.65]
[1754429160046,7.89069528,163.19,163.18,42.94]
[1754429160217,7.89069528,163.19,163.18,43.65]
[1754429160417,7.89069528,163.19,163.17,0.06]
[1754429160613,7.89069528,163.18,163.17,0.06]
[1754429160816,14.71889726,163.18,163.17,0.06]
[1754429161044,14.71889726,163.18,163.13,0.06]
[1754429161345,7.89069528,163.14,163.13,0.06]
[1754429162350,7.89069528,163.14,163.13,0.77]
[1754429162773,7.89069528,163.16,163.13,6.9000803]
[1754429162954,4.87060403,163.21,163.16,0.14216157]
[1754429162955,7.89069528,163.21,163.16,0.14216157]
[1754429163364,7.89069528,163.2,163.17,0.71]
[1754429163567,7.89069528,163.2,163.18,0.66]
[1754429163879,7.89069528,163.21,163.18,0.66]
[1754429164688,7.89069528,163.22,163.19,0.66]
[1754429165965,7.89069528,163.21,163.18,6.12818546]
[1754429166154,8.56069528,163.22,163.18,6.78818546]
[1754429166357,7.89069528,163.21,163.18,6.78818546]
[1754429166566,8.56069528,163.22,163.18,6.78818546]
[1754429166761,8.56069528,163.22,163.18,0.66]
[1754429166959,7.89069528,163.21,163.18,6.78806665]
[1754429167156,8.56069528,163.22,163.18,6.78806665]
[1754429167357,7.89069528,163.22,163.19,0.66]
[1754429167574,6.79600281,163.24,163.18,6.12806665]
[1754429167784,7.89069528,163.22,163.2,0.66]
[1754429168279,7.89069528,163.22,163.18,21.73999999]
[1754429168460,7.89069528,163.2,163.18,21.73999999]
[1754429168670,7.89069528,163.19,163.18,21.73999999]
[1754429176674,0.67,163.2,163.18,21.73999999]
[1754429176879,7.89069528,163.19,163.18,21.73999999]
[1754429177488,8.56069528,163.2,163.18,21.73999999]
[1754429177687,7.89069528,163.2,163.18,21.73999999]